{"text_format":"3","workbook":"xlsx","n_sheets":4,"sheets":["Rekapitulacija","SKLOP I. - Sanitarije K","SKLOP II. - Sanitarije P","SKLOP III. - Del hodnika K"],"not_rendered":{"images":1,"defined_names":4},"read":"whole","date_system":"1900"}

{"sheet":"Rekapitulacija","index":0,"n_rows":24,"n_cols":8,"rows_kept":24,"merged":[[1,1,1,4],[7,1,7,4],[18,2,18,3]]}
[]
[null,"Objekt: IJS Ljubljana; Glavna stavba\n"]
[null,"Investitor: INŠTITUT \"JOŽEF STEFAN\", Jamova 39, 1000 Ljubljana"]
[]
[]
[]
[]
[null,"REKAPITULACIJA"]
[{"$nulls":4},"I.","II.","III.","I. + II. + III."]
[{"$nulls":4},"Sanitarije K","Sanitarije P","Del hodnika K","SKUPAJ"]
[null,"A","GRADBENA DELA",null,{"$f":"'SKLOP I. - Sanitarije K'!F52","v":{"v":0,"d":"0.00 €"}},{"$f":"'SKLOP II. - Sanitarije P'!F51","v":{"v":0,"d":"0.00 €"}},{"$f":"'SKLOP III. - Del hodnika K'!F37","v":{"v":0,"d":"0.00 €"}},{"$f":"E11+F11+G11","v":{"v":0,"d":"0.00 €"}}]
[null,"B","OBRTNIŠKA DELA",null,{"$f":"'SKLOP I. - Sanitarije K'!F76","v":{"v":0,"d":"0.00 €"}},{"$f":"'SKLOP II. - Sanitarije P'!F77","v":{"v":0,"d":"0.00 €"}},{"$f":"'SKLOP III. - Del hodnika K'!F78","v":{"v":0,"d":"0.00 €"}},{"$f":"E12+F12+G12","v":{"v":0,"d":"0.00 €"}}]
[null,"C","STROJNE INŠTALACIJE",null,{"$f":"'SKLOP I. - Sanitarije K'!F106","v":{"v":0,"d":"0.00 €"}},{"$f":"'SKLOP II. - Sanitarije P'!F105","v":{"v":0,"d":"0.00 €"}},{"$f":"'SKLOP III. - Del hodnika K'!F96","v":{"v":0,"d":"0.00 €"}},{"v":0,"d":"0.00 €"}]
[null,"D","OPREMA",null,{"$f":"'SKLOP I. - Sanitarije K'!F120","v":{"v":0,"d":"0.00 €"}},{"$f":"'SKLOP II. - Sanitarije P'!F123","v":{"v":0,"d":"0.00 €"}},null,{"v":0,"d":"0.00 €"}]
[null,"E","OSTALO (čiščenje)",null,{"$f":"'SKLOP I. - Sanitarije K'!F126","v":{"v":0,"d":"0.00 €"}},{"$f":"'SKLOP II. - Sanitarije P'!F129","v":{"v":0,"d":"0.00 €"}},{"$f":"'SKLOP III. - Del hodnika K'!F102","v":{"v":0,"d":"0.00 €"}},{"v":0,"d":"0.00 €"}]
[null,"A + B + C + D + E","SKUPAJ brez DDV",null,{"$f":"SUM(E11:E14)","v":{"v":0,"d":"0.00 €"}},{"$f":"SUM(F11:F14)","v":{"v":0,"d":"0.00 €"}},{"v":0,"d":"0.00 €"},{"v":0,"d":"0.00 €"}]
[]
[null,"F ","NEPREDVIDENA DELA* \nbrez DDV",{"v":0.1,"d":"10%"},{"$f":"D18*E16","v":{"v":0,"d":"0.00 €"}},{"$f":"D18*F16","v":{"v":0,"d":"0.00 €"}},{"$f":"D18*G16","v":{"v":0,"d":"0.00 €"}},{"$f":"D18*H16","v":{"v":0,"d":"0.00 €"}}]
[null,"A + B + C + D + E + F","SKUPAJ z NEPREDVIDENIMI DELI \nbrez DDV",null,{"$f":"E16+E18","v":{"v":0,"d":"0.00 €"}},{"$f":"F16+F18","v":{"v":0,"d":"0.00 €"}},{"v":0,"d":"0.00 €"},{"v":0,"d":"0.00 €"}]
[null,null,"DDV ",{"v":0.22,"d":"22%"},{"$f":"E19*0.22","v":{"v":0,"d":"0.00 €"}},{"$f":"F19*0.22","v":{"v":0,"d":"0.00 €"}},{"v":0,"d":"0.00 €"},{"v":0,"d":"0.00 €"}]
[null,"A + B + C + D + E + F","SKUPAJ z DDV",null,{"$f":"E19+E20","v":{"v":0,"d":"0.00 €"}},{"$f":"F19+F20","v":{"v":0,"d":"0.00 €"}},{"$f":"G19+G20","v":{"v":0,"d":"0.00 €"}},{"$f":"H19+H20","v":{"v":0,"d":"0.00 €"}}]
[]
[]
[null,"* nepredvidena dela se obračunajo po dejanskih stroških, potrjena s strani nadzora"]

{"sheet":"SKLOP I. - Sanitarije K","index":1,"n_rows":128,"n_cols":7,"rows_kept":128}
[]
["SPLOŠNE ZAHTEVE ZA IZDELAVO PONUDBE:"]
[]
["Ponudnik mora v cenah po enoti vkalkularati"]
["- vsa stroške električne energije in vode,"]
[" -  načrt organizacije gradbišča, "]
[" - stroški koordinacije varnosti v skladu s predpisi, "]
[" - zavarovanje gradbišča,"]
[" - zavarovanje in podpiranje obstoječih konstrukcij, da ne pride do poškodb,"]
[" - tekoče odvažanje gradbenih odpadkov na pooblaščeno deponijo,"]
[" - poročilo o ravnanju z gradbenimi odpadki,"]
[" -  vse manipulativne stroške, ter drobni material,"]
[" -  vse potrebne meritve, certifikate, poročila in preglede za izdelavo, dokazila o zanesljivosti objekta,"]
[" -  ponudnik mora upoštevati, da si mora pred izvedbo, dobavo in vgradnjo vseh elementov vidnih obdelav površin "]
["predhodno pridobiti soglasje investitorja in dostaviti vzorce v potrditev."]
[]
[]
["Poz.","Naziv elementa - Dobava in montaža","Merska enota","Količina","Cena/enoto brez DDV","Cena brez DDV"]
["I.","PRENOVA SANITARIJE - Klet"]
[]
["A.","Gradbena dela"]
[]
["A1","Pripravljalna dela"]
["1.","Izpraznitev prostorov (kar ni zajeto v postavkah v nadaljevanju), z odvozom. Priprava in ureditev gradbišča z ureditvijo gradbiščnih priključkov, vsakodnevno čiščenje skupnih prostorov in stopnišč, izvedba fizičnih zapor za preprečitev dostopa do gradbišča, postavitev gradbiščnih vrat, gradbiščne table in opozorilnih oznak, premičnih odri za izvajanje del ter druga pripravljalna in zaključna dela. V ceni zajeti tudi odstranitev vsega po zaključku del.","kpl",{"v":1,"d":"1.00"},null,{"$f":"ROUND(D24*E24,2)","v":0}]
[]
["A2","Rušitvena dela"]
["2.","Vhodna vrata se ohranijo, zaščita med deli.","kpl",{"v":2,"d":"2.00"},null,{"$f":"ROUND(D27*E27,2)","v":0}]
["3.","Demontaža notranjih vrat velikosti 70 x 210 cm, z izbijanjem podboja in odstranitvijo vseh elementov. Prenos, nakladanje in odvoz na trajno deponijo s plačilom takse.","kpl",{"v":4,"d":"4.00"},null,0]
["4.","Odstranitev elektro instalacij, 8x stropne svetilke, vsa stikala in vtičnice. Prenos, nakladanje in odvoz na trajno deponijo s plačilom takse.","kpl",{"v":2,"d":"2.00"},null,0]
["5.","Odstranitev in demontaža umivalnika 4x, izlivne armature 4x in sifona 4x, pisoar 1x, wc školjka 4x, wc kotliček 4x z vsemi ostalimi elementi. Prenos, nakladanje in odvoz na trajno deponijo s plačilom takse.","kpl",{"v":1,"d":"1.00"},null,0]
["6.","Odstranitev radiatorjev z vsemi elementi. Prenos, nakladanje in odvoz na trajno deponijo s plačilom takse.","kos",{"v":4,"d":"4.00"},null,0]
["7.","Demontaža podajalnikov, ogledal 4x in poličk 4x. Prenos, nakladanje in odvoz na trajno deponijo s plačilom takse.","kpl",{"v":1,"d":"1.00"},null,0]
["8.","Odbijanje stenske in talne keramike. Prenos, nakladanje in odvoz na trajno deponijo s plačilom takse.","m2",{"v":81.9,"d":"81.90"},null,0]
["9.","Rušenje spuščenega stropa s podkonstrukcijo. Prenos, nakladanje in odvoz na trajno deponijo s plačilom takse.","m2",17.42,null,0]
["10.","Rušenje opečnih sten debeline do 20 cm. Prenos, nakladanje in odvoz na trajno deponijo s plačilom takse.","m3",0.32,null,0]
["11.","Rušenje celotne sestave tlaka do talne plošče debeline 14 cm estrih 6 cm gramozno nasutje 8 cm. Prenos, nakladanje in odvoz na trajno deponijo s plačilom takse.","m2",17.42,null,0]
["12.","Odstranitev cevnega razvoda vodovodnih cevi v celoti do vertikalnih hišnih vodov. Prenos, nakladanje in odvoz na trajno deponijo s plačilom takse.","m",{"v":40,"d":"40.00"},null,0]
["13.","Odstranitev cevnega razvoda odtočnih PVC cevi, talnih sifonov, v celoti do vertikalne hišne kanalizacije. Prenos, nakladanje in odvoz na trajno deponijo s plačilom takse.","m",{"v":15,"d":"15.00"},null,0]
["14.","Dolbljenje za vzidavo geberit kotlička v opečni zid globina 25 cm, višina 110 cm, širina 80 cm. Prenos, nalaganje z odvozom ruševin na trajno deponijo s plačilom takse.","kpl",{"v":1,"d":"1.00"},null,0]
["15.","Dolbljenje utorov v zidovih, za razvod instalacij, preseka do 6x6 cm. Prenos, nalaganje, z odvozom ruševin na trajno deponijo s plačilom takse.","m",{"v":15,"d":"15.00"},null,0]
["16.","Dolbljenje v zidovih, za razvod instalacij, preseka do 15x15 cm. Prenos, nalaganje, z odvozom ruševin na trajno deponijo s plačilom takse.","m",{"v":25.6,"d":"25.60"},null,0]
["17.","Dolbljenje v tleh, za razvod odtočnih instalacij, preseka 15x6 cm. Prenos, nalaganje, z odvozom ruševin na trajno deponijo s plačilom takse.","m",{"v":4,"d":"4.00"},null,0]
[]
["A3","Zidarska dela"]
["18.","Krpanje utorov v zidovih, za razvod instalacij, preseka do 6x6 cm","m",{"v":15,"d":"15.00"},null,{"$f":"ROUND(D45*E45,2)","v":0}]
["19.","Krpanje utorov v zidovih, za razvod instalacij, preseka do 15x15 cm","m",{"v":25.6,"d":"25.60"},null,0]
["20.","Popravilo obstoječih površin po odstranitvi keramične stenske obloge s predhodno pripravo podlage za obdelavo, premaz z emulzijo, izdelavo grobega in finega apneno cementnega ometa.","m",{"v":71.8,"d":"71.80"},null,0]
["21.","Dobava in izdelava hidroizolacije na pripravljeno podlago s hidroizolacijskim premazom s predhodno dobavo in vgradnjo tesnilnih trakov na mestih prebojev in robovih tlakov, kot proizvajalca Mapei ali Kema.","m2",{"v":17.2,"d":"17.20"},null,0]
["22.","Ročna izdelava plavajočega mikroarmiranega betonskega estriha deb.6 cm, PE folija, 8 cm TI.","m2",{"v":17.2,"d":"17.20"},null,0]
["23.","Pozidava geberit kotličkov s siporexom, višine do 100 cm, širine do 120 cm, vključno z obdelavo siporex blokov z lepilom in mrežico.","kpl",{"v":4,"d":"4.00"},null,0]
["24.","Pozidava nizkega zidu iz siporexa d 15 cm, š 50, v 150.","kpl",{"v":1,"d":"1.00"},null,0]
[null,"Skupaj gradbena dela:",{"$nulls":3},{"$f":"ROUND(SUM(F24:F51),2)","v":0}]
[]
["B.","Obrtniška dela"]
[]
["B1","Mavčnokartonska dela"]
["1.","Dobava in izdelava knauf stropa na obešeni podkonstrukciji, vlagoodporne plošče 12,5 mm z bandažiranjem stikov.","m2",17.42,null,{"$f":"ROUND(D57*E57,2)","v":0}]
["2.","Dobava in izdelava kaskade 0,44x1,8 m, vlagoodporne plošče podkonstrukcija in bandažiranje stikov.","m",{"v":3.6,"d":"3.60"},null,{"$f":"ROUND(D58*E58,2)","v":0}]
["3.","Dobava in montaža revizijskih vratc 60x60.","kos",{"v":2,"d":"2.00"},null,{"$f":"ROUND(D59*E59,2)","v":0}]
["4.","Izrez za luči","kos",{"v":8,"d":"8.00"},null,{"$f":"ROUND(D60*E60,2)","v":0}]
["B2","Keramičarska dela"]
["5.","Dobava stenske keramike Florgres BUILDTECH, dimenzije 40x80 cm - vzorec potrdi projektantka"]
[null," - samo dobava","m2",{"v":64,"d":"64.00"},null,{"$f":"ROUND(D63*E63,2)","v":0}]
[null," - delo","m2",{"v":58.5,"d":"58.50"},null,{"$f":"ROUND(D64*E64,2)","v":0}]
["6.","Dobava talne keramike Florgres BUILDTECH, dimenzije 40x80 cm - vzorec potrdi projektantka"]
[null," - samo dobava","m2",{"v":23,"d":"23.00"},null,{"$f":"ROUND(D66*E66,2)","v":0}]
[null," - delo","m2",17.42,null,{"$f":"ROUND(D67*E67,2)","v":0}]
["7.","Brušenje vogalov ploščic na 45''","m",{"v":6.8,"d":"6.80"},null,{"$f":"ROUND(D68*E68,2)","v":0}]
["8.","Silikoniranje kotov","m",{"v":69.2,"d":"69.20"},null,{"$f":"ROUND(D69*E69,2)","v":0}]
["B3","Slikopleskarska dela"]
["9.","Izravnava sten nad keramičnimi ploščicami v deb.cca 1,5 cm z mavčnim ometom.","m2",{"v":23.9,"d":"23.90"},null,{"$f":"ROUND(D71*E71,2)","v":0}]
["10.","Beljenje sten z latex mat belo barvo.","m2",{"v":36.6,"d":"36.60"},null,{"$f":"ROUND(D72*E72,2)","v":0}]
["11.","Kitanje, brušenje in pleskanje stropov s poldisperzijsko belo barvo.","m2",{"v":18.9,"d":"18.90"},null,{"$f":"ROUND(D73*E73,2)","v":0}]
["12.","Brušenje, kitanje in 2x lakiranje vhodnih vrat dimenzije s podbojem, belo.","m2",{"v":12.8,"d":"12.80"},null,{"$f":"ROUND(D74*E74,2)","v":0}]
["13.","Zaščita prostora in elementov med deli","kpl",{"v":1,"d":"1.00"},null,{"$f":"ROUND(D75*E75,2)","v":0}]
[null,"Skupaj obrtniška dela:",{"$nulls":3},{"$f":"ROUND(SUM(F57:F75),2)","v":0}]
[]
["C.","Instalacijska dela"]
[]
["C1.","Strojne instalacije"]
["1.","Izpraznitev in polnjenje sistema centralnega gretja, obveščanje strank, zaprtje vode, obveščanje uporabnikov","kpl",{"v":1,"d":"1.00"},null,{"$f":"ROUND(D81*E81,2)","v":0}]
["2.","Izdelava priključka nove vodovodne inštalacije na obstoječ glavni vodovodni vod, topla hladna voda","kpl",{"v":2,"d":"2.00"},null,{"$f":"ROUND(D82*E82,2)","v":0}]
["3.","Izvedba vodovodne inštalacije do mest priključkov iz cevi PE-X/alu kompletno s fazonskimi kosi"]
[null," - fi 16x2","m",{"v":24,"d":"24.00"},null,{"$f":"ROUND(D84*E84,2)","v":0}]
[null," - fi 20x2","m",{"v":20,"d":"20.00"},null,{"$f":"ROUND(D85*E85,2)","v":0}]
[null," - fi 25x2","m",{"v":16,"d":"16.00"},null,{"$f":"ROUND(D86*E86,2)","v":0}]
["4.","Izdelava priključka nove inštalacije centralnega gretja na obstoječe vode 1/2''","kpl",{"v":2,"d":"2.00"},null,{"$f":"ROUND(D87*E87,2)","v":0}]
["5.","Izvedba cevne inštalacije do mest priključkov novih radiatorjev iz cevi PE-X alu z izolacijo kompletno s fazonskimi kosi, fi 16x2","m",{"v":28.4,"d":"28.40"},null,{"$f":"ROUND(D88*E88,2)","v":0}]
["6.","Izvedba odtočne kanalizacije iz PP cevi kompletno fazonskimi kosi tesnili in pritrditvijo ter priklopom na obstoječo kanalizacijo"]
[null," - fi 50","m",{"v":9,"d":"9.00"},null,{"$f":"ROUND(D90*E90,2)","v":0}]
[null," - fi 75","m",{"v":12,"d":"12.00"},null,0]
[null," - fi 100","m",{"v":6,"d":"6.00"},null,0]
["7.","Dobava in montaža radiatorja velikosti 600/900/22 sredinski priklop komplet z ventili, montažo termostatske glave","kos",{"v":2,"d":"2.00"},null,0]
["8.","Montaža umivalnika, priklop umivalniške armature z ventili odtočnega sifona","kpl",{"v":4,"d":"4.00"},null,0]
["9.","Dobava, montaža in priklop geberit Duofix Basic, podometnega splakovalnega kotlička in montaža tipke","kos",{"v":3,"d":"3.00"},null,0]
["10.","Montaža in priklop stenske WC školjke in WC deske","kos",{"v":3,"d":"3.00"},null,0]
["11.","Dobava in montaža podometnega nosilca za pisoar Geberit Duofix","kos",{"v":1,"d":"1.00"},null,0]
["12.","Montaža in priklop pisoarja in sifona","kos",{"v":2,"d":"2.00"},null,0]
["13.","Dobava in montaža elektronskega splakovalnika za pisoar s celico Elmer","kos",{"v":2,"d":"2.00"},null,0]
["14.","Montaža ogledal dimenzije 125x90","kos",{"v":4,"d":"4.00"},null,0]
["15.","Montaža podajalnikov za wc papir, milo, papirne brisače","kos",{"v":12,"d":"12.00"},null,0]
["16.","Dobava in montaža El.grelnika vode vertikal. 50 l GB80OR Gorenje","kos",{"v":1,"d":"1.00"},null,0]
["17.","Tlačni preizkus vodovodne inštalacije","kpl",{"v":1,"d":"1.00"},null,0]
["C2.","Prezračevanje"]
["1.","Popravilo razvoda prezračevanja ter dobava in montaža difuzorjev","kpl",{"v":1,"d":"1.00"},null,{"$f":"ROUND(D105*E105,2)","v":0}]
[null,"Skupaj strojne inštalacije:",{"$nulls":3},{"$f":"ROUND(SUM(F81:F105),2)","v":0}]
[]
["D.","Oprema"]
[]
["D1.","Sanitarna keramika (samo dobava)"]
["1.","Stenski umivalnik Dolomite GEMMA2, 60 cm","kos",{"v":4,"d":"4.00"},null,{"$f":"ROUND(D111*E111,2)","v":0}]
["2.","Viseča školjka Dolomite GEMMA2","kos",{"v":3,"d":"3.00"},null,0]
["3.","WC deska s počasnim zapiranjem za Dolomite GEMMA2","kos",{"v":3,"d":"3.00"},null,0]
["4.","Pisoar APOLLO, A101KPL K11-0025","kos",{"v":2,"d":"2.00"},null,0]
["5.","Armatura za umivalnik UNITAS PROJECT komplet","kos",{"v":4,"d":"4.00"},null,0]
["6.","Tipka za splakovalnik geberit DELTA 20, bela","kos",{"v":3,"d":"3.00"},null,0]
["7.","Ogledalo brušen rob 60x90x cm x 4 mm na leseni podlagi z robom v beli barvi","kos",{"v":4,"d":"4.00"},null,0]
["D2.","Stavbno pohištvo"]
["1.","Vrata dvojna bela, zaščiten podboj z inox pločevino 20 cm od tal, skrita nasadila, dimenzije 660 x 2100 2x dobava in montaža","kpl",{"v":2,"d":"2.00"},null,{"$f":"ROUND(D119*E119,2)","v":0}]
[null,"Skupaj oprema:",{"$nulls":3},{"$f":"ROUND(SUM(F111:F119),2)","v":0}]
[]
["E.","Ostalo"]
[]
["E1.","Čiščenje"]
["1.","Čiščenje prostorov po končanih delih - vse površine, elementi, oprema.","m2",17.42,null,{"$f":"ROUND(D125*E125,2)","v":0}]
[null,"Skupaj ostalo:",{"$nulls":3},{"$f":"ROUND(SUM(F125),2)","v":0}]
[]
[{"$nulls":4},"SKUPAJ I.",{"$f":"ROUND(SUM(F126+F120+F106+F76+F52),2)","v":0},{"$f":"F128-(SUM(F20:F126)/2)","v":0}]

{"sheet":"SKLOP II. - Sanitarije P","index":2,"n_rows":133,"n_cols":7,"rows_kept":133}
[]
["SPLOŠNE ZAHTEVE ZA IZDELAVO PONUDBE:"]
[]
["Ponudnik mora v cenah po enoti vkalkularati"]
["- vsa stroške električne energije in vode,"]
[" -  načrt organizacije gradbišča, "]
[" - stroški koordinacije varnosti v skladu s predpisi, "]
[" - zavarovanje gradbišča,"]
[" - zavarovanje in podpiranje obstoječih konstrukcij, da ne pride do poškodb,"]
[" - tekoče odvažanje gradbenih odpadkov na pooblaščeno deponijo,"]
[" - poročilo o ravnanju z gradbenimi odpadki,"]
[" -  vse manipulativne stroške, ter drobni material,"]
[" -  vse potrebne meritve, certifikate, poročila in preglede za izdelavo, dokazila o zanesljivosti objekta,"]
[" -  ponudnik mora upoštevati, da si mora pred izvedbo, dobavo in vgradnjo vseh elementov vidnih obdelav površin "]
["predhodno pridobiti soglasje investitorja in dostaviti vzorce v potrditev."]
[]
[]
["Poz.","Naziv elementa - Dobava in montaža","Merska enota","Količina","Cena/enoto brez DDV","Cena brez DDV"]
["I.","PRENOVA SANITARIJE - Pritličje"]
[]
["A.","Gradbena dela"]
[]
["A1","Pripravljalna dela"]
["1.","Izpraznitev prostorov (kar ni zajeto v postavkah v nadaljevanju), z odvozom. Priprava in ureditev gradbišča z ureditvijo gradbiščnih priključkov, vsakodnevno čiščenje skupnih prostorov in stopnišč, izvedba fizičnih zapor za preprečitev dostopa do gradbišča, postavitev gradbiščnih vrat, gradbiščne table in opozorilnih oznak, premičnih odri za izvajanje del ter druga pripravljalna in zaključna dela. V ceni zajeti tudi odstranitev vsega po zaključku del.","kpl",{"v":1,"d":"1.00"},null,{"$f":"ROUND(D24*E24,2)","v":0}]
[]
["A2","Rušitvena dela"]
["2.","Demontaža notranjih vrat velikosti 80 x 210 cm, z izbijanjem podboja in odstranitvijo vseh elementov. Prenos, nakladanje in odvoz na trajno deponijo s plačilom takse.","kos",{"v":1,"d":"1.00"},null,{"$f":"ROUND(D27*E27,2)","v":0}]
["3.","Demontaža notranjih vrat velikosti 70 x 210 cm, z izbijanjem podboja in odstranitvijo vseh elementov. Prenos, nakladanje in odvoz na trajno deponijo s plačilom takse.","kpl",{"v":4,"d":"4.00"},null,0]
["4.","Odstranitev elektro instalacij, 4x stropne svetilke, vsa stikala in vtičnice. Prenos, nakladanje in odvoz na trajno deponijo s plačilom takse.","kpl",{"v":1,"d":"1.00"},null,0]
["5.","Odstranitev in demontaža umivalnika 2x, izlivne armature 2x in sifona 4x, pisoar 1x, wc školjka 1x, wc kotliček 1x, bojler, 1x tuš kad, kabina, armatura. Prenos, nakladanje in odvoz na trajno deponijo s plačilom takse.","kpl",{"v":1,"d":"1.00"},null,0]
["6.","Odstranitev radiatorjev z vsemi elementi. Prenos, nakladanje in odvoz na trajno deponijo s plačilom takse.","kos",{"v":2,"d":"2.00"},null,0]
["7.","Demontaža podajalnikov, ogledal in poličk. Prenos, nakladanje in odvoz na trajno deponijo s plačilom takse.","kpl",{"v":1,"d":"1.00"},null,0]
["8.","Odbijanje stenske in talne keramike. Prenos, nakladanje in odvoz na trajno deponijo s plačilom takse.","m2",{"v":53,"d":"53.00"},null,0]
["9.","Rušenje spuščenega stropa s podkonstrukcijo. Prenos, nakladanje in odvoz na trajno deponijo s plačilom takse.","m2",6.44,null,0]
["10.","Rušenje opečnih sten debeline do 20 cm. Prenos, nakladanje in odvoz na trajno deponijo s plačilom takse.","m3",1.98,null,0]
["11.","Rušenje celotne sestave tlaka do talne plošče debeline 14 cm estrih 6 cm gramozno nasutje 8 cm. Prenos, nakladanje in odvoz na trajno deponijo s plačilom takse.","m2",8.85,null,0]
["12.","Odstranitev cevnega razvoda vodovodnih cevi v celoti do vertikalnih hišnih vodov. Prenos, nakladanje in odvoz na trajno deponijo s plačilom takse.","m",{"v":20,"d":"20.00"},null,0]
["13.","Odstranitev cevnega razvoda odtočnih PVC cevi, talnih sifonov, v celoti do vertikalne hišne kanalizacije. Prenos, nakladanje in odvoz na trajno deponijo s plačilom takse.","m",{"v":8,"d":"8.00"},null,0]
["14.","Dolbljenje utorov v zidovih, za razvod instalacij, preseka do 6x6 cm. Prenos, nalaganje, z odvozom ruševin na trajno deponijo s plačilom takse.","m",{"v":15,"d":"15.00"},null,0]
["15.","Dolbljenje v zidovih, za razvod instalacij, preseka do 15x15 cm. Prenos, nalaganje, z odvozom ruševin na trajno deponijo s plačilom takse.","m",{"v":25.6,"d":"25.60"},null,0]
["16.","Dolbljenje v tleh, za razvod odtočnih instalacij, preseka 15x6 cm. Prenos, nalaganje, z odvozom ruševin na trajno deponijo s plačilom takse.","m",{"v":4,"d":"4.00"},null,0]
[]
["A3","Zidarska dela"]
["17.","Krpanje utorov v zidovih, za razvod instalacij, preseka do 6x6 cm","m",{"v":15,"d":"15.00"},null,{"$f":"ROUND(D44*E44,2)","v":0}]
["18.","Krpanje utorov v zidovih, za razvod instalacij, preseka do 15x15 cm","m",{"v":25.6,"d":"25.60"},null,0]
["19.","Popravilo obstoječih površin po odstranitvi keramične stenske obloge s predhodno pripravo podlage za obdelavo, premaz z emulzijo, izdelavo grobega in finega apneno cementnega ometa.","m",{"v":24,"d":"24.00"},null,0]
["20.","Dobava in izdelava hidroizolacije na pripravljeno podlago s hidroizolacijskim premazom s predhodno dobavo in vgradnjo tesnilnih trakov na mestih prebojev in robovih tlakov, kot proizvajalca Mapei ali Kema.","m2",{"v":8.9,"d":"8.90"},null,0]
["21.","Ročna izdelava plavajočega mikroarmiranega betonskega estriha deb.6 cm, PE folija, 8 cm TI.","m2",{"v":8.9,"d":"8.90"},null,0]
["22.","Pozidava geberit kotličkov s siporexom, višine do 100 cm, širine do 120 cm, vključno z obdelavo siporex blokov z lepilom in mrežico.","kpl",{"v":1,"d":"1.00"},null,0]
["23.","Poravnava špalete po razširitvi vratne odprtine","m",{"v":2,"d":"2.00"},null,0]
[null,"Skupaj gradbena dela:",{"$nulls":3},{"$f":"ROUND(SUM(F24:F50),2)","v":0}]
[]
["B.","Obrtniška dela"]
[]
["B1","Mavčnokartonska dela"]
["1.","Dobava in izdelava knauf stropa na obešeni podkonstrukciji, vlagoodporne plošče 12,5 mm z bandažiranjem stikov.","m2",6.72,null,{"$f":"ROUND(D56*E56,2)","v":0}]
["2.","Dobava in izdelava kaskade 0,32x1,8 m, vlagoodporne plošče podkonstrukcija in bandažiranje stikov.","m",1.89,null,{"$f":"ROUND(D57*E57,2)","v":0}]
["3.","Dobava in izdelava knauf stene W112 debeline 12,5 cm, vlagoodporne plošče","m",5.65,null,{"$f":"ROUND(D58*E58,2)","v":0}]
["4.","Dobava in izdelava knauf škatle (tristranske), iz vlagoodpornih plošč z bandažiranjem","m",1.32,null,0]
["5.","Dobava in montaža revizijskih vratc 60x60.","kos",{"v":1,"d":"1.00"},null,0]
["6.","Izrez za luči","kos",{"v":4,"d":"4.00"},null,{"$f":"ROUND(D61*E61,2)","v":0}]
["B2","Keramičarska dela"]
["7.","Dobava stenske keramike Florgres BUILDTECH, dimenzije 40x80 cm - vzorec potrdi projektantka"]
[null," - samo dobava","m2",{"v":34,"d":"34.00"},null,{"$f":"ROUND(D64*E64,2)","v":0}]
[null," - delo","m2",31.41,null,{"$f":"ROUND(D65*E65,2)","v":0}]
["8.","Dobava talne keramike Florgres BUILDTECH, dimenzije 40x80 cm - vzorec potrdi projektantka"]
[null," - samo dobava","m2",{"v":10,"d":"10.00"},null,{"$f":"ROUND(D67*E67,2)","v":0}]
[null," - delo","m2",{"v":8.9,"d":"8.90"},null,{"$f":"ROUND(D68*E68,2)","v":0}]
["9.","Brušenje vogalov ploščic na 45''","m",{"v":6.6,"d":"6.60"},null,{"$f":"ROUND(D69*E69,2)","v":0}]
["10.","Silikoniranje kotov","m",{"v":32.5,"d":"32.50"},null,{"$f":"ROUND(D70*E70,2)","v":0}]
["B3","Slikopleskarska dela"]
["11.","Izravnava sten nad keramičnimi ploščicami v deb.cca 1,5 - 2 cm z mavčnim ometom.","m2",{"v":11.6,"d":"11.60"},null,{"$f":"ROUND(D72*E72,2)","v":0}]
["12.","Dobava in montaža alu vogalnikov","m",{"v":4.5,"d":"4.50"},null,{"$f":"ROUND(D73*E73,2)","v":0}]
["13.","Beljenje sten z latex mat belo barvo.","m2",{"v":12.5,"d":"12.50"},null,{"$f":"ROUND(D74*E74,2)","v":0}]
["14.","Kitanje, brušenje in pleskanje stropov s poldisperzijsko belo barvo.","m2",{"v":8.8,"d":"8.80"},null,{"$f":"ROUND(D75*E75,2)","v":0}]
["15.","Zaščita prostora in elementov med deli","kpl",{"v":1,"d":"1.00"},null,{"$f":"ROUND(D76*E76,2)","v":0}]
[null,"Skupaj obrtniška dela:",{"$nulls":3},{"$f":"ROUND(SUM(F56:F76),2)","v":0}]
[]
["C.","Instalacijska dela"]
[]
["C1.","Strojne instalacije"]
["1.","Izpraznitev in polnjenje sistema centralnega gretja, obveščanje strank, zaprtje vode, obveščanje uporabnikov","kpl",{"v":1,"d":"1.00"},null,{"$f":"ROUND(D82*E82,2)","v":0}]
["2.","Izdelava priključka nove vodovodne inštalacije na obstoječ glavni vodovodni vod, topla hladna voda","kpl",{"v":2,"d":"2.00"},null,{"$f":"ROUND(D83*E83,2)","v":0}]
["3.","Izvedba vodovodne inštalacije do mest priključkov iz cevi PE-X/alu kompletno s fazonskimi kosi"]
[null," - fi 16x2","m",{"v":12,"d":"12.00"},null,{"$f":"ROUND(D85*E85,2)","v":0}]
[null," - fi 20x2","m",{"v":10,"d":"10.00"},null,{"$f":"ROUND(D86*E86,2)","v":0}]
[null," - fi 25x2","m",{"v":8,"d":"8.00"},null,{"$f":"ROUND(D87*E87,2)","v":0}]
["4.","Izdelava priključka nove inštalacije centralnega gretja na obstoječe vode 1/2''","kpl",{"v":1,"d":"1.00"},null,{"$f":"ROUND(D88*E88,2)","v":0}]
["5.","Izvedba cevne inštalacije do mest priključkov novih radiatorjev iz cevi PE-X alu z izolacijo kompletno s fazonskimi kosi, fi 16x2","m",{"v":11.2,"d":"11.20"},null,{"$f":"ROUND(D89*E89,2)","v":0}]
["6.","Izvedba odtočne kanalizacije iz PP cevi kompletno fazonskimi kosi tesnili in pritrditvijo ter priklopom na obstoječo kanalizacijo"]
[null," - fi 50","m",{"v":6,"d":"6.00"},null,{"$f":"ROUND(D91*E91,2)","v":0}]
[null," - fi 75","m",{"v":5,"d":"5.00"},null,0]
[null," - fi 100","m",{"v":6.5,"d":"6.50"},null,0]
["7.","Dobava in montaža radiatorja velikosti 600/900/22 sredinski priklop komplet z ventili, montažo termostatske glave","kos",{"v":1,"d":"1.00"},null,0]
["8.","Montaža umivalnika, priklop umivalniške armature z ventili odtočnega sifona","kpl",{"v":2,"d":"2.00"},null,0]
["9.","Dobava, montaža in priklop Geberit Duofix Basic, podometnega splakovalnega kotlička in montaža tipke","kos",{"v":1,"d":"1.00"},null,0]
["10.","Montaža in priklop stenske WC školjke in WC deske","kos",{"v":1,"d":"1.00"},null,0]
["11.","Montaža ogledal dimenzije 125x90","kos",{"v":2,"d":"2.00"},null,0]
["12.","Montaža držal za invalide","kom",{"v":2,"d":"2.00"},null,0]
["13.","Montaža podajalnikov za wc papir, milo, papirne brisače","kos",{"v":5,"d":"5.00"},null,0]
["14.","Dobava in montaža El.grelnika vode vertikal. 50 l GB80OR Gorenje","kos",{"v":1,"d":"1.00"},null,0]
["15.","Tlačni preizkus vodovodne inštalacije","kpl",{"v":1,"d":"1.00"},null,0]
["C2.","Prezračevanje"]
["1.","Popravilo razvoda prezračevanja ter dobava in montaža difuzorjev","kpl",{"v":1,"d":"1.00"},null,{"$f":"ROUND(D104*E104,2)","v":0}]
[null,"Skupaj strojne inštalacije:",{"$nulls":3},{"$f":"ROUND(SUM(F82:F104),2)","v":0}]
[{"$nulls":5},{"$f":"ROUND(D106*E106,2)","v":0}]
["D.","Oprema"]
[]
["D1.","Sanitarna keramika (samo dobava)"]
["1.","KOLO NOVA PRO umivalnik za invalide 65x55 M31865","kom",{"v":1,"d":"1.00"},null,{"$f":"ROUND(D110*E110,2)","v":0}]
["2.","Viseča školjka za invalide KOLO NOVA Pro M33500","kom",{"v":1,"d":"1.00"},null,0]
["3.","WC deska za školjko s pokrovom","kom",{"v":1,"d":"1.00"},null,0]
["4.","Stenski umivalnik Dolomite GEMMA2, 60 cm","kos",{"v":1,"d":"1.00"},null,{"$f":"ROUND(D113*E113,2)","v":0}]
["5.","Armatura za umivalnik UNITAS PROJECT komplet","kos",{"v":2,"d":"2.00"},null,{"$f":"ROUND(D114*E114,2)","v":0}]
["6.","Tipka za splakovalnik geberit DELTA 20, bela","kos",{"v":1,"d":"1.00"},null,{"$f":"ROUND(D115*E115,2)","v":0}]
["7.","Ogledalo brušen rob 60x90x cm x 4 mm na leseni podlagi z robom v beli barvi","kos",{"v":1,"d":"1.00"},null,{"$f":"ROUND(D116*E116,2)","v":0}]
["8.","Ogledalo za invalide z nagibom 65/60","kos",{"v":1,"d":"1.00"},null,{"$f":"ROUND(D117*E117,2)","v":0}]
["9.","Držalo premično KOIN I=75 cm inox","kos",{"v":1,"d":"1.00"},null,0]
["10.","Ravno držalo KOIN fiksno 795 mm inox","kos",{"v":1,"d":"1.00"},null,0]
["D2.","Stavbno pohištvo"]
["1.","Vrata enojna bela z nadsvetlobo, zaščiten podboj z inox pločevino 20 cm od tal, skrita nasadila, dimenzije 900 x 2670 2x dobava in montaža","kpl",{"v":1,"d":"1.00"},null,{"$f":"ROUND(D121*E121,2)","v":0}]
["2.","Vrata vhodna na hodniku bela, dim 900 x 2100 dobava in montaža","kpl",{"v":1,"d":"1.00"},null,{"$f":"ROUND(D122*E122,2)","v":0}]
[null,"Skupaj oprema:",{"$nulls":3},{"$f":"ROUND(SUM(F110:F122),2)","v":0}]
[]
["E.","Ostalo"]
[]
["E1.","Čiščenje"]
["1.","Čiščenje prostorov po končanih delih - vse površine, elementi, oprema.","m2",{"v":8.9,"d":"8.90"},null,{"$f":"ROUND(D128*E128,2)","v":0}]
[null,"Skupaj ostalo:",{"$nulls":3},{"$f":"ROUND(SUM(F128),2)","v":0}]
[]
[{"$nulls":4},"SKUPAJ II.",{"$f":"ROUND(SUM(F129+F123+F105+F77+F51),2)","v":0},{"$f":"F131-(SUM(F21:F129)/2)","v":0}]
[{"$nulls":5},{"$f":"ROUND(D132*E132,2)","v":0}]
[{"$nulls":5},{"$f":"ROUND(D133*E133,2)","v":0}]

{"sheet":"SKLOP III. - Del hodnika K","index":3,"n_rows":105,"n_cols":7,"rows_kept":105}
[]
["SPLOŠNE ZAHTEVE ZA IZDELAVO PONUDBE:"]
[]
["Ponudnik mora v cenah po enoti vkalkularati"]
["- vsa stroške električne energije in vode,"]
[" -  načrt organizacije gradbišča, "]
[" - stroški koordinacije varnosti v skladu s predpisi, "]
[" - zavarovanje gradbišča,"]
[" - zavarovanje in podpiranje obstoječih konstrukcij, da ne pride do poškodb,"]
[" - tekoče odvažanje gradbenih odpadkov na pooblaščeno deponijo,"]
[" - poročilo o ravnanju z gradbenimi odpadki,"]
[" -  vse manipulativne stroške, ter drobni material,"]
[" -  vse potrebne meritve, certifikate, poročila in preglede za izdelavo, dokazila o zanesljivosti objekta,"]
[" -  ponudnik mora upoštevati, da si mora pred izvedbo, dobavo in vgradnjo vseh elementov vidnih obdelav površin "]
["predhodno pridobiti soglasje investitorja in dostaviti vzorce v potrditev."]
[]
["Poz.","Naziv elementa - Dobava in montaža","Merska enota","Količina","Cena/enoto brez DDV","Cena brez DDV"]
["I.","PRENOVA DELA HODNIKA - Klet"]
[]
["A.","Gradbena dela"]
[]
["A1","Pripravljalna dela"]
["1.","Izpraznitev prostorov (kar ni zajeto v postavkah v nadaljevanju), z odvozom. Priprava in ureditev gradbišča z ureditvijo gradbiščnih priključkov, vsakodnevno čiščenje skupnih prostorov in stopnišč, izvedba fizičnih zapor za preprečitev dostopa do gradbišča, postavitev gradbiščnih vrat, gradbiščne table in opozorilnih oznak, premičnih odri za izvajanje del ter druga pripravljalna in zaključna dela. V ceni zajeti tudi odstranitev vsega po zaključku del.","kpl",{"v":1,"d":"1.00"},null,{"$f":"ROUND(D23*E23,2)","v":0}]
[]
["A2","Rušitvena in zidarska dela"]
["1.","Odstranitev PVC oblog po hodniku z odvozom na deponijo","m2",{"v":65,"d":"65.00"},null,{"$f":"ROUND(D26*E26,2)","v":0}]
["2.","Odstranitev PVC tal po hodniku z odvozom na deponijo","m2",{"v":202.2,"d":"202.20"},null,{"$f":"ROUND(D27*E27,2)","v":0}]
["3.","Odstranitev prehodne strene in vrat v prostoru 025 - stopnišče, 3,55 x 2,92 m, z odvozom na deponijo","kpl",{"v":1,"d":"1.00"},null,0]
["4.","Naprava utorov v hodniku za odtočne cevi 0,7x1,2 m odvoz ruševin na trajno deponijo do 5 km","m",{"v":30,"d":"30.00"},null,0]
["5.","Naprava utorov v hodniku za odtočne cevi 0,5x1,2 m odvoz ruševin na trajno deponijo do 5 km","m",{"v":25,"d":"25.00"},null,0]
["6.","Obsutje odtočnih cevi s peskom 0-4 mm v pov. deb. 10 cm","m",{"v":55,"d":"55.00"},null,0]
["7.","Dobava in vgradnja podložnega betona","m2",{"v":40,"d":"40.00"},null,0]
["8.","Odstranitev starih cevi z odvozom na deponijo","m",{"v":56,"d":"56.00"},null,0]
["9.","Obbetoniranje stikov kanalizacijskih cevi in kolen","kos",{"v":15,"d":"15.00"},null,0]
["10.","Dobava in izdelava hidroizolacije po celem hodniku","m2",{"v":45,"d":"45.00"},null,0]
["11.","Dobava in izdelava hitro sušečega estriha deb. 5 cm","m2",{"v":50,"d":"50.00"},null,0]
[null,"Skupaj gradbena dela:",{"$nulls":3},{"$f":"ROUND(SUM(F23:F36),2)","v":0}]
[]
[]
["B.","Obrtniška dela"]
[]
["B1","Slikopleskarska dela"]
[null,"Glavni hodnik"]
["1.","Struganje stare slikarije s premazom emulzije","m2",{"v":112.7,"d":"112.70"},null,{"$f":"ROUND(D44*E44,2)","v":0}]
["2.","2x glajenje sten s kitom","m2",{"v":112.7,"d":"112.70"},null,{"$f":"ROUND(D45*E45,2)","v":0}]
["3.","2x oplesk sten s poldisperzijo","m2",{"v":112.7,"d":"112.70"},null,{"$f":"ROUND(D46*E46,2)","v":0}]
[null,"Hodnik izhod-hodnik prehod"]
["4.","Delno zakitavanje in struganje razpok","m2",{"v":158,"d":"158.00"},null,{"$f":"ROUND(D48*E48,2)","v":0}]
["5.","2x oplesk sten s poldisperzijo","m2",{"v":158,"d":"158.00"},null,{"$f":"ROUND(D49*E49,2)","v":0}]
["6.","Obnovitev obstoječih vrat s prepleskom, 810x2000, 910x2000 mm","kpl",{"v":1,"d":"1.00"},null,{"$f":"ROUND(D50*E50,2)","v":0}]
[{"$nulls":5},{"$f":"ROUND(D51*E51,2)","v":0}]
["B2","Tlakarska dela"]
[null,"Glavni hodnik in hodnik prehod"]
["7.","1x premaz tlaka z emulzijo pred izravnavo","m2",{"v":176.2,"d":"176.20"},null,{"$f":"ROUND(D54*E54,2)","v":0}]
["8.","Izravnava tlaka debeline 2 cm z izravnalno maso","m2",{"v":176.2,"d":"176.20"},null,0]
["9.","2x premaz tlaka z epoksi premazom zaradi vlage pred polaganjem linoleja","m2",{"v":176.2,"d":"176.20"},null,0]
["10.","Dobava in polaganje linoleja talne obloge v roli in varitev stikov, material naj bo enakovreden, kot v sosednjem prosotru z oznako 029","m2",{"v":176.2,"d":"176.20"},null,0]
["11.","Demontaža, nabava in montaža PVC traka","m",{"v":82,"d":"82.00"},null,0]
[null,"Hodnik izhod"]
["12.","1x premaz tlaka z emulzijo pred izravnavo","m2",{"v":26,"d":"26.00"},null,{"$f":"ROUND(D60*E60,2)","v":0}]
["13.","2x izravnava tlaka pred polaganjem linoleja","m2",{"v":26,"d":"26.00"},null,{"$f":"ROUND(D61*E61,2)","v":0}]
["14.","Dobava in polaganje nedrsečega linoleja v roli in varitev stikov, material naj bo enakovreden, kot v sosednjem prosotru z oznako 029","m2",{"v":26,"d":"26.00"},null,{"$f":"ROUND(D62*E62,2)","v":0}]
["15.","Demontaža, nabava in montaža PVC traka ","m",{"v":19.2,"d":"19.20"},null,{"$f":"ROUND(D63*E63,2)","v":0}]
["16.","Dobava in izdelava knauf stropa na obešeni podkonstrukciji, vlagoodporne plošče 12,5 mm z bandažiranjem stikov. Material naj bo enakovreden, kot v sosednjem prosotru z oznako 029 oz. veznem hodniku B-objekt","m2",{"v":14,"d":"14.00"},null,{"$f":"ROUND(D64*E64,2)","v":0}]
[null,"Hodnik vezni B-objekt"]
["17.","1x premaz tlaka z emulzijo pred izravnavo","m2",{"$f":"18.6+13.4","v":{"v":32,"d":"32.00"}},null,{"$f":"ROUND(D66*E66,2)","v":0}]
["18.","2x izravnava tlaka pred polaganjem linoleja","m2",{"v":13.4,"d":"13.40"},null,{"$f":"ROUND(D67*E67,2)","v":0}]
["19.","Dobava in polaganje nedrsečega linoleja v roli in varitev stikov, material naj bo enakovreden, kot v sosednjem prosotru z oznako 029","m2",{"v":18.6,"d":"18.60"},null,{"$f":"ROUND(D68*E68,2)","v":0}]
["20.","Dobava in polaganje linoleja talne obloge v roli in varitev stikov, material naj bo enakovreden, kot v sosednjem prosotru z oznako 029","m2",{"v":13.4,"d":"13.40"},null,{"$f":"ROUND(D69*E69,2)","v":0}]
["21.","Demontaža, nabava in montaža PVC traka ","m",{"v":29,"d":"29.00"},null,{"$f":"ROUND(D70*E70,2)","v":0}]
[]
["B3","Mavčnokartonska dela"]
[null,"Dobava in izdelava knauf stropa na obešeni podkonstrukciji, vlagoodporne plošče 12,5 mm z bandažiranjem stikov. Material naj bo enakovreden, kot v sosednjem prosotru z oznako 029 oz. veznem hodniku B-objekt","m2",{"v":176.2,"d":"176.20"},null,{"$f":"ROUND(D73*E73,2)","v":0}]
[null,"Dobava in izdelava kaskade 0,60 x 3,55 m, mavčnokartonska plošča, podkonstrukcija in bandažiranje stikov.","m",{"v":3,"d":"3.00"},null,{"$f":"ROUND(D74*E74,2)","v":0}]
[null,"Dobava in montaža revizijskih vratc 60x60.","kos",{"v":1,"d":"1.00"},null,{"$f":"ROUND(D75*E75,2)","v":0}]
[null,"Izrez za luči, inst","kos",{"v":4,"d":"4.00"},null,{"$f":"ROUND(D76*E76,2)","v":0}]
[]
[null,"Skupaj obrtniška dela:",{"$nulls":3},{"$f":"ROUND(SUM(F44:F77),2)","v":0}]
[]
["C.","Instalacijska dela"]
[]
["C1","Zamenjava kanalizacijskih cevi"]
[null,"Material"]
["1.","Debelostenska cev NG 160 s fazonskimi kosi","m",{"v":28,"d":"28.00"},null,{"$f":"ROUND(D84*E84,2)","v":0}]
["2.","Jašek s protismradnim pokrovom - oljni pokrov, dimenzije 60x60 cm","kos",{"v":2,"d":"2.00"},null,{"$f":"ROUND(D85*E85,2)","v":0}]
["3.","Debelostenska cev NG 110 s fazonskimi kosi","kpl",{"v":10,"d":"10.00"},null,{"$f":"ROUND(D86*E86,2)","v":0}]
["4.","PVC prehodni kos 110 pp na beton","kos",{"v":10,"d":"10.00"},null,{"$f":"ROUND(D87*E87,2)","v":0}]
["5.","Tesnilni in pritrdilni material","kpl",{"v":1,"d":"1.00"},null,{"$f":"ROUND(D88*E88,2)","v":0}]
[null,"Delo"]
["6.","Demontaža obstoječih cevi","kpl",{"v":1,"d":"1.00"},null,{"$f":"ROUND(D90*E90,2)","v":0}]
["7.","Iznos in nakladanje","kpl",{"v":1,"d":"1.00"},null,0]
["8.","Montaža in spajanje cevi","kpl",{"v":1,"d":"1.00"},null,0]
["9.","Priklop na obstoječo cev","kpl",{"v":10,"d":"10.00"},null,0]
["10.","Montaža jaška","kpl",{"v":2,"d":"2.00"},null,0]
["11.","Transportni stroški in st. odvoza na deponijo","kpl",{"v":1,"d":"1.00"},null,0]
[null,"Skupaj strojne inštalacije:",{"$nulls":3},{"$f":"ROUND(SUM(F83:F95),2)","v":0}]
[]
["E.","Ostalo"]
[]
["E1.","Čiščenje"]
["1.","Čiščenje prostorov po končanih delih - vse površine, elementi, oprema.","m2",{"$f":"176.2+26+32","v":{"v":234.2,"d":"234.20"}},null,{"$f":"ROUND(D101*E101,2)","v":0}]
[null,"Skupaj ostalo:",{"$nulls":3},{"$f":"ROUND(SUM(F101),2)","v":0}]
[]
[]
[{"$nulls":4},"SKUPAJ III.",{"$f":"ROUND(SUM(F96+F78+F37+F102),2)","v":0},{"$f":"F105-(SUM(F20:F103)/2)","v":0}]